[Event "*** Titled Tuesday 3|2 Blitz"]
[Site "Chess.com"]
[Date "2016.06.07"]
[Round "2"]
[White "Ksenia_Legenko"]
[Black "Silent_Terror"]
[Result "0-1"]
[WhiteElo "2045"]
[BlackElo "2508"]
[TimeControl "180+2"]
[EndTime "17:25:29 PDT"]
[Termination "Silent_Terror won by checkmate"]

1. d4 {[%clk 0:03:01.9]} 1... e6 {[%clk 0:03:01.9]} 2. c4 {[%clk 0:03:02.2]}
2... Nf6 {[%clk 0:03:02.8]} 3. g3 {[%clk 0:03:02.5]} 3... Bb4+ {[%clk 0:03:03]}
4. Bd2 {[%clk 0:03:03]} 4... Qe7 {[%clk 0:03:03.9]} 5. Bg2 {[%clk 0:03:03.1]}
5... Nc6 {[%clk 0:03:04]} 6. Nf3 {[%clk 0:03:03.4]} 6... Bxd2+ {[%clk
0:03:04.1]} 7. Qxd2 {[%clk 0:03:03.4]} 7... Ne4 {[%clk 0:03:04.9]} 8. Qc2 {[%clk
0:03:03.1]} 8... Qb4+ {[%clk 0:03:04.9]} 9. Nbd2 {[%clk 0:03:02.8]} 9... Nxd2
{[%clk 0:03:05.8]} 10. Qxd2 {[%clk 0:02:57.7]} 10... Qxc4 {[%clk 0:03:06.6]} 11.
O-O {[%clk 0:02:58.4]} 11... Qb4 {[%clk 0:03:07]} 12. Qd3 {[%clk 0:02:54]} 12...
d5 {[%clk 0:03:02.1]} 13. a3 {[%clk 0:02:39.9]} 13... Qd6 {[%clk 0:03:01.9]} 14.
b4 {[%clk 0:02:39.6]} 14... a6 {[%clk 0:02:58.8]} 15. Rfc1 {[%clk 0:02:35.2]}
15... O-O {[%clk 0:02:58.2]} 16. Rab1 {[%clk 0:02:27.1]} 16... Ne7 {[%clk
0:02:55.4]} 17. a4 {[%clk 0:02:24.6]} 17... Bd7 {[%clk 0:02:49.5]} 18. Qb3
{[%clk 0:02:10.9]} 18... Rfc8 {[%clk 0:02:42]} 19. Rc2 {[%clk 0:02:01.5]} 19...
Be8 {[%clk 0:02:36.8]} 20. Rbc1 {[%clk 0:02:01.9]} 20... f6 {[%clk 0:02:37]} 21.
e3 {[%clk 0:01:59.2]} 21... c6 {[%clk 0:02:35]} 22. Ne1 {[%clk 0:01:49.8]} 22...
Bg6 {[%clk 0:02:31.1]} 23. Rc3 {[%clk 0:01:46.6]} 23... Qd7 {[%clk 0:02:27.5]}
24. Bf1 {[%clk 0:01:38]} 24... e5 {[%clk 0:02:19.4]} 25. Nd3 {[%clk 0:01:15.8]}
25... Bxd3 {[%clk 0:02:19.1]} 26. Bxd3 {[%clk 0:01:16.4]} 26... Kh8 {[%clk
0:02:16.7]} 27. Qc2 {[%clk 0:01:04.3]} 27... e4 {[%clk 0:02:14.1]} 28. Bf1
{[%clk 0:01:05]} 28... f5 {[%clk 0:01:59.7]} 29. h4 {[%clk 0:01:02.4]} 29... Ng8
{[%clk 0:01:51.4]} 30. b5 {[%clk 0:00:58.7]} 30... axb5 {[%clk 0:01:51.9]} 31.
axb5 {[%clk 0:00:59.4]} 31... Ne7 {[%clk 0:01:53.2]} 32. bxc6 {[%clk 0:00:52.5]}
32... bxc6 {[%clk 0:01:42.8]} 33. Rb3 {[%clk 0:00:47.4]} 33... Rcb8 {[%clk
0:01:39.3]} 34. Rxb8+ {[%clk 0:00:47.5]} 34... Rxb8 {[%clk 0:01:41.2]} 35. Qc5
{[%clk 0:00:48]} 35... h6 {[%clk 0:01:27.4]} 36. Ra1 {[%clk 0:00:47]} 36... Re8
{[%clk 0:01:17.1]} 37. Ra7 {[%clk 0:00:45.8]} 37... Qe6 {[%clk 0:01:18.2]} 38.
Bh3 {[%clk 0:00:41.8]} 38... g5 {[%clk 0:01:03.1]} 39. hxg5 {[%clk 0:00:42.3]}
39... hxg5 {[%clk 0:01:05]} 40. Rc7 {[%clk 0:00:38.8]} 40... g4 {[%clk
0:00:56.6]} 41. Bg2 {[%clk 0:00:36.8]} 41... Kg7 {[%clk 0:00:57]} 42. Qa7 {[%clk
0:00:29.7]} 42... Kf6 {[%clk 0:00:55.8]} 43. Qc5 {[%clk 0:00:28.7]} 43... Rd8
{[%clk 0:00:54.3]} 44. Qa7 {[%clk 0:00:27.3]} 44... Qd6 {[%clk 0:00:53.6]} 45.
Qb7 {[%clk 0:00:26.3]} 45... Ke6 {[%clk 0:00:52.6]} 46. Bf1 {[%clk 0:00:27.1]}
46... Rd7 {[%clk 0:00:52.4]} 47. Rxd7 {[%clk 0:00:23.3]} 47... Qxd7 {[%clk
0:00:54.3]} 48. Qb8 {[%clk 0:00:23.1]} 48... Qc8 {[%clk 0:00:49.3]} 49. Qe5+
{[%clk 0:00:23.6]} 49... Kf7 {[%clk 0:00:50.6]} 50. Kg2 {[%clk 0:00:21.7]} 50...
Ng6 {[%clk 0:00:49.1]} 51. Qd6 {[%clk 0:00:21]} 51... Qe6 {[%clk 0:00:46]} 52.
Qc7+ {[%clk 0:00:21.4]} 52... Ne7 {[%clk 0:00:42.3]} 53. Ba6 {[%clk 0:00:20.5]}
53... Qh6 {[%clk 0:00:36.4]} 54. Bb7 {[%clk 0:00:20.7]} 54... Qh3+ {[%clk
0:00:31.9]} 55. Kg1 {[%clk 0:00:21.8]} 55... Qh6 {[%clk 0:00:33.8]} 56. Kg2
{[%clk 0:00:21.3]} 56... Qe6 {[%clk 0:00:33.6]} 57. Kg1 {[%clk 0:00:21.5]} 57...
Ke8 {[%clk 0:00:34.5]} 58. Kg2 {[%clk 0:00:22.5]} 58... Qd7 {[%clk 0:00:33.3]}
59. Qb8+ {[%clk 0:00:23.4]} 59... Kf7 {[%clk 0:00:31.2]} 60. Ba8 {[%clk
0:00:23.6]} 60... Qc8 {[%clk 0:00:22.3]} 61. Qa7 {[%clk 0:00:21.5]} 61... Ke6
{[%clk 0:00:21.6]} 62. Kg1 {[%clk 0:00:20.2]} 62... Kd6 {[%clk 0:00:20.8]} 63.
Qc5+ {[%clk 0:00:18]} 63... Kd7 {[%clk 0:00:21.9]} 64. Qa7+ {[%clk 0:00:19.2]}
64... Qc7 {[%clk 0:00:23.1]} 65. Qc5 {[%clk 0:00:18.6]} 65... Nc8 {[%clk
0:00:23.5]} 66. Qf8 {[%clk 0:00:17.7]} 66... Ne7 {[%clk 0:00:24.1]} 67. Qh8
{[%clk 0:00:12.8]} 67... Qc8 {[%clk 0:00:21.7]} 68. Qxc8+ {[%clk 0:00:11.4]}
68... Kxc8 {[%clk 0:00:23.6]} 69. Kg2 {[%clk 0:00:11.7]} 69... Kb8 {[%clk
0:00:24.5]} 70. Bxc6 {[%clk 0:00:12.3]} 70... Nxc6 {[%clk 0:00:26.4]} 71. Kg1
{[%clk 0:00:13.4]} 71... Kc7 {[%clk 0:00:27.6]} 72. Kg2 {[%clk 0:00:14.7]} 72...
Kb6 {[%clk 0:00:29]} 73. Kg1 {[%clk 0:00:15.6]} 73... Kb5 {[%clk 0:00:30.4]} 74.
Kg2 {[%clk 0:00:16.8]} 74... Kc4 {[%clk 0:00:31.9]} 75. Kf1 {[%clk 0:00:17.7]}
75... Nxd4 {[%clk 0:00:33.3]} 76. exd4 {[%clk 0:00:18.6]} 76... Kxd4 {[%clk
0:00:35.2]} 77. Ke2 {[%clk 0:00:20.2]} 77... Kc3 {[%clk 0:00:36.2]} 78. Kd1
{[%clk 0:00:20.3]} 78... d4 {[%clk 0:00:37.5]} 79. Kc1 {[%clk 0:00:20]} 79... d3
{[%clk 0:00:34.5]} 80. Kd1 {[%clk 0:00:20.8]} 80... d2 {[%clk 0:00:35.2]} 81.
Ke2 {[%clk 0:00:21.2]} 81... Kc2 {[%clk 0:00:36.1]} 82. Ke3 {[%clk 0:00:21.9]}
82... d1=Q {[%clk 0:00:36.8]} 83. f4 {[%clk 0:00:22.1]} 83... Qd2# {[%clk
0:00:35.6]} 0-1

[Event "*** Titled Tuesday 3|2 Blitz"]
[Site "Chess.com"]
[Date "2016.06.07"]
[Round "3"]
[White "silverback96"]
[Black "hangemhigh"]
[Result "0-1"]
[WhiteElo "2025"]
[BlackElo "2216"]
[TimeControl "180+2"]
[EndTime "17:30:20 PDT"]
[Termination "hangemhigh won by checkmate"]

1. Nf3 {[%clk 0:03:01.9]} 1... d5 {[%clk 0:02:50.8]} 2. g3 {[%clk 0:03:02.7]}
2... c6 {[%clk 0:02:51.9]} 3. Bg2 {[%clk 0:03:02]} 3... Bg4 {[%clk 0:02:52.8]}
4. O-O {[%clk 0:03:03.9]} 4... Nd7 {[%clk 0:02:53.1]} 5. c4 {[%clk 0:03:04]}
5... dxc4 {[%clk 0:02:51.8]} 6. Na3 {[%clk 0:03:01.3]} 6... Nb6 {[%clk
0:02:49.5]} 7. Ne5 {[%clk 0:02:52.7]} 7... Be6 {[%clk 0:02:48.6]} 8. f4 {[%clk
0:02:54]} 8... Nf6 {[%clk 0:02:43.3]} 9. e4 {[%clk 0:02:52.8]} 9... h5 {[%clk
0:02:30.1]} 10. f5 {[%clk 0:02:52.1]} 10... Qd4+ {[%clk 0:02:16]} 11. Kh1 {[%clk
0:02:51.8]} 11... Qxe5 {[%clk 0:02:15.8]} 12. fxe6 {[%clk 0:02:53.5]} 12... Qxe6
{[%clk 0:02:11.1]} 13. d3 {[%clk 0:02:54.9]} 13... O-O-O {[%clk 0:02:08.4]} 14.
Be3 {[%clk 0:02:49.6]} 14... Rxd3 {[%clk 0:02:04.7]} 15. Qe1 {[%clk 0:02:51.1]}
15... h4 {[%clk 0:01:57.3]} 16. Bxb6 {[%clk 0:02:51.4]} 16... axb6 {[%clk
0:01:57.3]} 17. Qb4 {[%clk 0:02:36.7]} 17... hxg3 {[%clk 0:01:48.1]} 18. Nxc4
{[%clk 0:02:31.6]} 18... Rxh2+ {[%clk 0:01:42]} 19. Kg1 {[%clk 0:02:33]} 19...
b5 {[%clk 0:01:35.5]} 20. Nb6+ {[%clk 0:02:31.4]} 20... Kc7 {[%clk 0:01:32.7]}
21. Qa5 {[%clk 0:02:21.5]} 21... Rxg2+ {[%clk 0:01:29.2]} 22. Kxg2 {[%clk
0:02:23.4]} 22... Qxe4+ {[%clk 0:01:29.3]} 23. Kg1 {[%clk 0:02:16.6]} 23... Qd4+
{[%clk 0:01:27]} 24. Kh1 {[%clk 0:02:09.5]} 24... Qh4+ {[%clk 0:01:25.6]} 25.
Kg1 {[%clk 0:02:10.9]} 25... Qh2# {[%clk 0:01:25.3]} 0-1

[Event "*** Titled Tuesday 3|2 Blitz"]
[Site "Chess.com"]
[Date "2016.06.07"]
[Round "3"]
[White "anon102030"]
[Black "chessking2151"]
[Result "1-0"]
[WhiteElo "2505"]
[BlackElo "2316"]
[TimeControl "180+2"]
[EndTime "17:30:40 PDT"]
[Termination "anon102030 won by resignation"]

1. e4 {[%clk 0:03:01.9]} 1... e5 {[%clk 0:02:54.8]} 2. Nc3 {[%clk 0:03:00.8]}
2... Nf6 {[%clk 0:02:55]} 3. g3 {[%clk 0:03:01.9]} 3... d5 {[%clk 0:02:53]} 4.
exd5 {[%clk 0:03:03.8]} 4... Nxd5 {[%clk 0:02:53.4]} 5. Bg2 {[%clk 0:03:04]}
5... Nxc3 {[%clk 0:02:52.7]} 6. bxc3 {[%clk 0:03:05.9]} 6... c6 {[%clk
0:02:49.8]} 7. Nf3 {[%clk 0:03:01.4]} 7... Bd6 {[%clk 0:02:46.5]} 8. O-O {[%clk
0:02:51.7]} 8... O-O {[%clk 0:02:45.6]} 9. d4 {[%clk 0:02:51]} 9... e4 {[%clk
0:02:36.2]} 10. Ng5 {[%clk 0:02:27.2]} 10... f5 {[%clk 0:02:33.5]} 11. f3 {[%clk
0:02:25.3]} 11... h6 {[%clk 0:02:14.5]} 12. Nh3 {[%clk 0:02:25.7]} 12... exf3
{[%clk 0:02:12.8]} 13. Bxf3 {[%clk 0:02:20.2]} 13... Nd7 {[%clk 0:02:13.9]} 14.
Nf4 {[%clk 0:02:14.6]} 14... Nf6 {[%clk 0:02:12.9]} 15. c4 {[%clk 0:02:13.7]}
15... g5 {[%clk 0:02:05.9]} 16. Ng6 {[%clk 0:02:01.2]} 16... Re8 {[%clk
0:02:02.8]} 17. c5 {[%clk 0:01:54.8]} 17... Bc7 {[%clk 0:02:00.2]} 18. Bb2
{[%clk 0:01:47.3]} 18... Nd5 {[%clk 0:01:57.1]} 19. Qd3 {[%clk 0:01:43.6]} 19...
Re3 {[%clk 0:00:58.1]} 20. Bxd5+ {[%clk 0:01:42.8]} 1-0

[Event "*** Titled Tuesday 3|2 Blitz"]
[Site "Chess.com"]
[Date "2016.06.07"]
[Round "3"]
[White "Malev212"]
[Black "pKiLz5Rn9b"]
[Result "0-1"]
[WhiteElo "2284"]
[BlackElo "2457"]
[TimeControl "180+2"]
[EndTime "17:31:17 PDT"]
[Termination "pKiLz5Rn9b won by resignation"]

1. Nf3 {[%clk 0:02:56.2]} 1... Nf6 {[%clk 0:03:01]} 2. g3 {[%clk 0:02:57.6]}
2... d5 {[%clk 0:03:02.1]} 3. Bg2 {[%clk 0:02:57.6]} 3... e6 {[%clk 0:03:03.8]}
4. O-O {[%clk 0:02:57.7]} 4... Be7 {[%clk 0:03:05.5]} 5. b3 {[%clk 0:02:56.5]}
5... O-O {[%clk 0:03:07.1]} 6. Bb2 {[%clk 0:02:57.9]} 6... c5 {[%clk 0:03:08.7]}
7. e3 {[%clk 0:02:58.7]} 7... Nc6 {[%clk 0:03:08.5]} 8. c4 {[%clk 0:02:59.4]}
8... d4 {[%clk 0:03:09.7]} 9. exd4 {[%clk 0:02:59.6]} 9... cxd4 {[%clk
0:03:11.6]} 10. Re1 {[%clk 0:03:00.2]} 10... Ne8 {[%clk 0:03:13.1]} 11. d3
{[%clk 0:02:54.5]} 11... f6 {[%clk 0:03:13.9]} 12. Nbd2 {[%clk 0:02:54.2]} 12...
e5 {[%clk 0:03:15.4]} 13. Nh4 {[%clk 0:02:52]} 13... g5 {[%clk 0:03:07.3]} 14.
Nhf3 {[%clk 0:02:50.6]} 14... a5 {[%clk 0:03:04.4]} 15. a3 {[%clk 0:02:50.4]}
15... Nc7 {[%clk 0:03:04.6]} 16. h4 {[%clk 0:02:45.2]} 16... h6 {[%clk
0:03:04.9]} 17. hxg5 {[%clk 0:02:44.5]} 17... hxg5 {[%clk 0:03:06.1]} 18. Nh2
{[%clk 0:02:45.7]} 18... Kg7 {[%clk 0:03:04.6]} 19. f4 {[%clk 0:02:37]} 19...
exf4 {[%clk 0:03:05.3]} 20. gxf4 {[%clk 0:02:35.6]} 20... Ne6 {[%clk 0:02:58.9]}
21. fxg5 {[%clk 0:02:30.6]} 21... fxg5 {[%clk 0:02:58.1]} 22. Rxe6 {[%clk
0:01:56.2]} 22... Bxe6 {[%clk 0:02:58.5]} 23. Qe2 {[%clk 0:01:55.2]} 23... Bf5
{[%clk 0:02:42.3]} 24. Rf1 {[%clk 0:01:51.5]} 24... Bg6 {[%clk 0:02:38.9]} 25.
Re1 {[%clk 0:01:48.4]} 25... Bc5 {[%clk 0:02:02.2]} 26. Ng4 {[%clk 0:01:39.3]}
26... Qd6 {[%clk 0:01:55.1]} 27. Ne4 {[%clk 0:01:36.1]} 27... Bxe4 {[%clk
0:01:54.5]} 28. Bxe4 {[%clk 0:01:34.5]} 28... Rf4 {[%clk 0:01:54.5]} 29. Ne3
{[%clk 0:01:30.6]} 29... Raf8 {[%clk 0:01:43.2]} 30. Nd5 {[%clk 0:01:30.3]}
30... Rf2 {[%clk 0:01:38.3]} 31. Qh5 {[%clk 0:01:29.5]} 31... Qg3+ {[%clk
0:01:35.3]} 32. Kh1 {[%clk 0:01:28]} 32... Rf1+ {[%clk 0:01:35.7]} 0-1

[Event "*** Titled Tuesday 3|2 Blitz"]
[Site "Chess.com"]
[Date "2016.06.07"]
[Round "3"]
[White "tactics321"]
[Black "howitzer14"]
[Result "0-1"]
[WhiteElo "2208"]
[BlackElo "2678"]
[TimeControl "180+2"]
[EndTime "17:31:43 PDT"]
[Termination "howitzer14 won by resignation"]

1. Nf3 {[%clk 0:03:01.9]} 1... d5 {[%clk 0:02:54.6]} 2. c4 {[%clk 0:02:56.2]}
2... c6 {[%clk 0:02:54.3]} 3. g3 {[%clk 0:02:55.2]} 3... Bg4 {[%clk 0:02:52.1]}
4. Bg2 {[%clk 0:02:55.6]} 4... e6 {[%clk 0:02:52.8]} 5. O-O {[%clk 0:02:55.4]}
5... Nd7 {[%clk 0:02:53.1]} 6. b3 {[%clk 0:02:52.3]} 6... Ngf6 {[%clk
0:02:38.7]} 7. Bb2 {[%clk 0:02:52.8]} 7... Bd6 {[%clk 0:02:40.4]} 8. d3 {[%clk
0:02:51.9]} 8... O-O {[%clk 0:02:41.7]} 9. Nbd2 {[%clk 0:02:52.7]} 9... Qe7
{[%clk 0:02:40.5]} 10. Rc1 {[%clk 0:02:35.6]} 10... a5 {[%clk 0:02:39.8]} 11.
Rc2 {[%clk 0:02:34.4]} 11... a4 {[%clk 0:02:37.6]} 12. Qb1 {[%clk 0:02:28.4]}
12... Rfd8 {[%clk 0:02:37.3]} 13. Bc3 {[%clk 0:02:23.5]} 13... axb3 {[%clk
0:02:34.5]} 14. axb3 {[%clk 0:02:25.4]} 14... Bb4 {[%clk 0:02:35.7]} 15. Qb2
{[%clk 0:02:21.4]} 15... h6 {[%clk 0:02:28.5]} 16. Ra1 {[%clk 0:02:16.3]} 16...
Bxc3 {[%clk 0:02:16.2]} 17. Qxc3 {[%clk 0:02:14.8]} 17... Rxa1+ {[%clk
0:02:09.3]} 18. Qxa1 {[%clk 0:02:13.9]} 18... Qb4 {[%clk 0:02:11.2]} 19. Qc3
{[%clk 0:02:12.2]} 19... Qxc3 {[%clk 0:02:09.3]} 20. Rxc3 {[%clk 0:02:13.4]}
20... Ra8 {[%clk 0:02:11]} 21. h3 {[%clk 0:02:12.7]} 21... Ra1+ {[%clk
0:01:53.3]} 22. Kh2 {[%clk 0:02:10.1]} 22... Bxf3 {[%clk 0:01:54.8]} 23. Bxf3
{[%clk 0:02:03.9]} 23... Kf8 {[%clk 0:01:37.7]} 24. b4 {[%clk 0:02:02.9]} 24...
Ke7 {[%clk 0:01:38.8]} 25. Rb3 {[%clk 0:02:00.7]} 25... Kd6 {[%clk 0:01:34.1]}
26. Rb1 {[%clk 0:01:50.4]} 26... Ra2 {[%clk 0:01:31.3]} 27. Nb3 {[%clk
0:01:50.1]} 27... Ne5 {[%clk 0:01:29.6]} 28. c5+ {[%clk 0:01:48.7]} 28... Kc7
{[%clk 0:01:30.7]} 29. Kg2 {[%clk 0:01:47.4]} 29... g5 {[%clk 0:01:30.2]} 30.
Nd4 {[%clk 0:01:38.4]} 30... h5 {[%clk 0:01:28]} 31. g4 {[%clk 0:01:23.7]} 31...
hxg4 {[%clk 0:01:27.8]} 32. hxg4 {[%clk 0:01:25.6]} 32... Nexg4 {[%clk
0:01:27.6]} 33. Rh1 {[%clk 0:01:24.2]} 33... Ne5 {[%clk 0:01:28.3]} 34. Rh6
{[%clk 0:01:23.8]} 34... Nfd7 {[%clk 0:01:27]} 35. Rh5 {[%clk 0:01:22]} 35... g4
{[%clk 0:01:26.9]} 0-1

[Event "*** Titled Tuesday 3|2 Blitz"]
[Site "Chess.com"]
[Date "2016.06.07"]
[Round "3"]
[White "AleksandrKholin"]
[Black "evgenyermolaev"]
[Result "0-1"]
[WhiteElo "2107"]
[BlackElo "2280"]
[TimeControl "180+2"]
[EndTime "17:31:59 PDT"]
[Termination "evgenyermolaev won by resignation"]

1. d4 {[%clk 0:03:01.9]} 1... Nf6 {[%clk 0:03:00.7]} 2. Nf3 {[%clk 0:03:03]}
2... b5 {[%clk 0:02:58.3]} 3. g3 {[%clk 0:03:04.3]} 3... Bb7 {[%clk 0:02:59]} 4.
Bg2 {[%clk 0:03:05.6]} 4... e6 {[%clk 0:02:58.6]} 5. O-O {[%clk 0:03:07.1]} 5...
Be7 {[%clk 0:02:57.6]} 6. Nbd2 {[%clk 0:03:08]} 6... O-O {[%clk 0:02:58.2]} 7.
c4 {[%clk 0:03:09.3]} 7... bxc4 {[%clk 0:02:59.1]} 8. Nxc4 {[%clk 0:03:10.2]}
8... c5 {[%clk 0:03:00.2]} 9. dxc5 {[%clk 0:03:10]} 9... Bxc5 {[%clk 0:03:00.9]}
10. Nd6 {[%clk 0:03:11.4]} 10... Bd5 {[%clk 0:02:57.5]} 11. Nb5 {[%clk
0:03:04.1]} 11... Nc6 {[%clk 0:02:53.5]} 12. Nc3 {[%clk 0:03:03]} 12... Be4
{[%clk 0:02:37.3]} 13. Bg5 {[%clk 0:03:00.1]} 13... Bg6 {[%clk 0:02:30.7]} 14.
Nh4 {[%clk 0:02:54.9]} 14... Rb8 {[%clk 0:02:21]} 15. Nxg6 {[%clk 0:02:54.3]}
15... hxg6 {[%clk 0:02:21.6]} 16. b3 {[%clk 0:02:51.7]} 16... Qa5 {[%clk
0:02:15.7]} 17. Qc1 {[%clk 0:02:16.1]} 17... Bd4 {[%clk 0:01:56.2]} 18. Bd2
{[%clk 0:02:12.3]} 18... Rfc8 {[%clk 0:01:44.7]} 19. e3 {[%clk 0:01:43.8]} 19...
Be5 {[%clk 0:01:45.5]} 20. Qe1 {[%clk 0:01:39.8]} 20... Nb4 {[%clk 0:01:23.6]}
21. f4 {[%clk 0:01:06.6]} 21... Nc2 {[%clk 0:01:10.4]} 22. fxe5 {[%clk
0:00:47.3]} 22... Nxe1 {[%clk 0:01:09.1]} 23. exf6 {[%clk 0:00:47.3]} 23... Nxg2
{[%clk 0:01:07.5]} 24. Kxg2 {[%clk 0:00:45.3]} 24... Rxc3 {[%clk 0:01:08.3]} 0-1

[Event "*** Titled Tuesday 3|2 Blitz"]
[Site "Chess.com"]
[Date "2016.06.07"]
[Round "3"]
[White "SwiftyMcBishop"]
[Black "Ar4uha"]
[Result "0-1"]
[WhiteElo "1932"]
[BlackElo "2347"]
[TimeControl "180+2"]
[EndTime "17:32:10 PDT"]
[Termination "Ar4uha won by resignation"]

1. e4 {[%clk 0:03:01.9]} 1... e5 {[%clk 0:02:58.9]} 2. Nf3 {[%clk 0:03:02.2]}
2... d6 {[%clk 0:03:00.3]} 3. d4 {[%clk 0:03:00.6]} 3... exd4 {[%clk 0:03:02.2]}
4. Nxd4 {[%clk 0:02:59.4]} 4... Nf6 {[%clk 0:03:03.7]} 5. Nc3 {[%clk 0:03:00.9]}
5... Be7 {[%clk 0:03:05.2]} 6. Bc4 {[%clk 0:03:01.9]} 6... O-O {[%clk
0:03:06.5]} 7. O-O {[%clk 0:03:03.4]} 7... c6 {[%clk 0:03:08]} 8. h3 {[%clk
0:02:57.4]} 8... b5 {[%clk 0:03:06.4]} 9. Bd3 {[%clk 0:02:52.3]} 9... Nbd7
{[%clk 0:03:06.9]} 10. Nf5 {[%clk 0:02:52.6]} 10... Nc5 {[%clk 0:03:05.8]} 11.
Bf4 {[%clk 0:02:50.6]} 11... Bxf5 {[%clk 0:03:05.5]} 12. exf5 {[%clk 0:02:50.5]}
12... d5 {[%clk 0:03:06.8]} 13. g4 {[%clk 0:02:47]} 13... b4 {[%clk 0:03:08]}
14. Ne2 {[%clk 0:02:42.4]} 14... Bd6 {[%clk 0:03:09.2]} 15. Qd2 {[%clk
0:02:41.9]} 15... Nfe4 {[%clk 0:03:09.6]} 16. Qe3 {[%clk 0:02:40.3]} 16... Nxd3
{[%clk 0:03:10.1]} 17. cxd3 {[%clk 0:02:40.1]} 17... Bc5 {[%clk 0:03:11.1]} 18.
Qf3 {[%clk 0:02:37.1]} 18... Nf6 {[%clk 0:03:11.4]} 19. g5 {[%clk 0:02:36.7]}
19... Nd7 {[%clk 0:03:12.4]} 20. d4 {[%clk 0:02:31.8]} 20... Bb6 {[%clk
0:03:13.6]} 21. Qg4 {[%clk 0:02:20.4]} 21... Re8 {[%clk 0:03:13.7]} 22. Rad1
{[%clk 0:02:16.2]} 22... Re4 {[%clk 0:03:13.5]} 23. Rfe1 {[%clk 0:01:56.5]}
23... Qe7 {[%clk 0:03:11.9]} 24. Kf1 {[%clk 0:01:31.9]} 24... Re8 {[%clk
0:03:12]} 25. Qf3 {[%clk 0:01:11.4]} 25... b3 {[%clk 0:03:12]} 26. a3 {[%clk
0:00:56.2]} 26... Bxd4 {[%clk 0:03:07.8]} 27. f6 {[%clk 0:00:40]} 27... Qe6
{[%clk 0:03:08.2]} 28. fxg7 {[%clk 0:00:27.3]} 28... Bxg7 {[%clk 0:03:08.2]} 29.
h4 {[%clk 0:00:25.1]} 29... Bxb2 {[%clk 0:03:08.7]} 30. h5 {[%clk 0:00:25.1]}
30... Ne5 {[%clk 0:03:08]} 31. Bxe5 {[%clk 0:00:24]} 31... Qxe5 {[%clk
0:03:09.9]} 32. g6 {[%clk 0:00:17.3]} 32... hxg6 {[%clk 0:03:10.6]} 33. hxg6
{[%clk 0:00:17.9]} 33... fxg6 {[%clk 0:03:12.5]} 34. Qg2 {[%clk 0:00:19]} 34...
Kg7 {[%clk 0:03:11.8]} 35. f3 {[%clk 0:00:18.2]} 35... Re3 {[%clk 0:03:12.1]}
36. Qf2 {[%clk 0:00:17.4]} 36... d4 {[%clk 0:03:13.5]} 37. f4 {[%clk 0:00:18]}
37... Qe4 {[%clk 0:03:14.6]} 38. Ng1 {[%clk 0:00:12.8]} 38... Rxe1+ {[%clk
0:03:16.5]} 39. Rxe1 {[%clk 0:00:14.3]} 39... Qxe1+ {[%clk 0:03:18.1]} 40. Qxe1
{[%clk 0:00:14.6]} 40... Rxe1+ {[%clk 0:03:20]} 41. Kxe1 {[%clk 0:00:16.1]}
41... Bxa3 {[%clk 0:03:20.9]} 42. Kd1 {[%clk 0:00:17.2]} 42... d3 {[%clk
0:03:20.8]} 43. Nf3 {[%clk 0:00:14.5]} 43... b2 {[%clk 0:03:22.7]} 44. Nd2
{[%clk 0:00:15.4]} 44... Bb4 {[%clk 0:03:24.3]} 45. Nb1 {[%clk 0:00:16.6]} 45...
c5 {[%clk 0:03:26]} 46. f5 {[%clk 0:00:11.4]} 46... gxf5 {[%clk 0:03:27.9]} 47.
Nc3 {[%clk 0:00:12.4]} 47... c4 {[%clk 0:03:28.7]} 48. Nb1 {[%clk 0:00:12.9]}
48... a5 {[%clk 0:03:29.8]} 49. Nc3 {[%clk 0:00:14.2]} 49... a4 {[%clk
0:03:31.1]} 50. Nb1 {[%clk 0:00:15.4]} 50... a3 {[%clk 0:03:32.5]} 51. Nxa3
{[%clk 0:00:06.5]} 51... Bxa3 {[%clk 0:03:32.4]} 52. Kd2 {[%clk 0:00:07.6]}
52... Bb4+ {[%clk 0:03:33.7]} 53. Ke3 {[%clk 0:00:08]} 53... Bc3 {[%clk
0:03:35.3]} 0-1

[Event "*** Titled Tuesday 3|2 Blitz"]
[Site "Chess.com"]
[Date "2016.06.07"]
[Round "3"]
[White "Generalas"]
[Black "chickencrossroad"]
[Result "0-1"]
[WhiteElo "2220"]
[BlackElo "2267"]
[TimeControl "180+2"]
[EndTime "17:32:14 PDT"]
[Termination "chickencrossroad won by resignation"]

1. e4 {[%clk 0:03:01.9]} 1... e5 {[%clk 0:03:01.2]} 2. Nf3 {[%clk 0:03:02.5]}
2... Nc6 {[%clk 0:03:02.8]} 3. Bb5 {[%clk 0:03:03.3]} 3... Nf6 {[%clk
0:03:03.4]} 4. O-O {[%clk 0:03:03.2]} 4... Nxe4 {[%clk 0:03:04.2]} 5. d4 {[%clk
0:03:03.9]} 5... Nd6 {[%clk 0:03:05.7]} 6. Bxc6 {[%clk 0:03:04.3]} 6... dxc6
{[%clk 0:03:07.6]} 7. dxe5 {[%clk 0:03:05.3]} 7... Nf5 {[%clk 0:03:09.3]} 8.
Qxd8+ {[%clk 0:03:05.3]} 8... Kxd8 {[%clk 0:03:10.5]} 9. Nc3 {[%clk 0:03:05.3]}
9... Be6 {[%clk 0:03:08.2]} 10. a3 {[%clk 0:03:02]} 10... h6 {[%clk 0:03:00.3]}
11. h3 {[%clk 0:03:02.3]} 11... Be7 {[%clk 0:02:59]} 12. Bf4 {[%clk 0:03:00.4]}
12... Kc8 {[%clk 0:02:34.7]} 13. Ne4 {[%clk 0:02:59.8]} 13... b6 {[%clk
0:02:26.2]} 14. Rad1 {[%clk 0:02:55.6]} 14... Kb7 {[%clk 0:02:27]} 15. g4 {[%clk
0:02:53.6]} 15... Nh4 {[%clk 0:02:04.2]} 16. Nxh4 {[%clk 0:02:54.5]} 16... Bxh4
{[%clk 0:02:06.1]} 17. Bg3 {[%clk 0:02:55.8]} 17... Be7 {[%clk 0:01:41.7]} 18.
f4 {[%clk 0:02:55.2]} 18... Bd5 {[%clk 0:01:30.2]} 19. Nc3 {[%clk 0:02:53.1]}
19... Bc4 {[%clk 0:01:28.5]} 20. Rfe1 {[%clk 0:02:48.3]} 20... Rad8 {[%clk
0:01:16.5]} 21. f5 {[%clk 0:02:48]} 21... Bc5+ {[%clk 0:01:03]} 22. Bf2 {[%clk
0:02:48]} 22... Be7 {[%clk 0:00:33.3]} 23. Bd4 {[%clk 0:02:24.6]} 23... Rxd4
{[%clk 0:00:32.1]} 24. Rxd4 {[%clk 0:02:21.5]} 24... Bc5 {[%clk 0:00:32.9]} 25.
Re4 {[%clk 0:01:55.8]} 25... Rd8 {[%clk 0:00:30.2]} 26. e6 {[%clk 0:01:39.1]}
26... Rxd4 {[%clk 0:00:28.2]} 27. Kg2 {[%clk 0:01:32]} 27... Rxe4 {[%clk
0:00:29.1]} 28. Nxe4 {[%clk 0:01:27.8]} 28... Bd5 {[%clk 0:00:26.5]} 29. Kf3
{[%clk 0:01:26.5]} 29... fxe6 {[%clk 0:00:27.8]} 30. fxe6 {[%clk 0:01:26.9]}
30... Bxe6 {[%clk 0:00:29.7]} 0-1